fUSD/lending_fUSD_20260203
["ID","MTS","AMOUNT","RATE_DAILY","PERIOD"]
[404364495,1770078639499,-500.0,0.0001,2]
[404364497,1770078639511,-500.0,0.0001,2]
[404364499,1770078639522,-500.0,0.0001,2]
[404364501,1770078639532,-200.0,0.0001,2]
[404364503,1770078639544,-500.0,0.0001,2]
[404364505,1770078639554,-500.0,0.0001,2]
[404364507,1770078639565,-500.0,0.0001,2]
[404364509,1770078639574,-500.0,0.0001,2]
[404364511,1770078639583,-500.0,0.0001,2]
[404364513,1770078639592,-500.0,0.0001,2]
[404364515,1770078639601,-500.0,0.0001,2]
[404364517,1770078639612,-151.0,0.0001,2]
[404364519,1770078639620,-151.0,0.0001,2]
[404364521,1770078639631,-151.0,0.0001,2]
[404364523,1770078639642,-151.0,0.0001,2]
[404364525,1770078639651,-200.0,0.0001,2]
[404364527,1770078639661,-151.0,0.0001,2]
[404364529,1770078639671,-151.0,0.0001,2]
[404364531,1770078639680,-151.0,0.0001,2]
[404364533,1770078639689,-151.0,0.0001,2]
[404364535,1770078639698,-174.66687349,0.0001,2]
[404364537,1770078639707,-151.0,0.0001,2]
[404364539,1770078639716,-151.0,0.0001,2]
[404364541,1770078639726,-151.0,0.0001,2]
[404364543,1770078639736,-151.0,0.0001,2]
[404364545,1770078639745,-151.0,0.0001,2]
[404364547,1770078639754,-151.0,0.0001,2]
[404364549,1770078639763,-151.0,0.0001,2]
[404364551,1770078639773,-151.0,0.0001,2]
[404364553,1770078639782,-151.0,0.0001,2]
[404364555,1770078639791,-151.0,0.0001,2]
[404364557,1770078639801,-151.0,0.0001,2]
[404364559,1770078639810,-151.0,0.0001,2]
[404364561,1770078639819,-150.01024118,0.0001,2]
[404364563,1770078639828,-500.0,0.0001,2]
[404364565,1770078639840,-1934.27557243,0.0001,2]
[404364567,1770078639851,-209.0,0.0001,2]
[404364569,1770078639859,-209.0,0.0001,2]
[404364571,1770078639868,-211.48188221,0.0001,2]
[404364573,1770078639878,-2739.56919757,0.0001,2]
[404364575,1770078639887,-22827.91268213,0.0001,2]
[404364577,1770078639896,-1379.17071038,0.0001,2]
[404364579,1770078639906,-1379.17071038,0.0001,2]
[404364581,1770078639915,-162.53028247,0.00010074,2]
[404364583,1770078639925,-225.36065254,0.00010074,2]
[404364585,1770078639934,-500.0,0.00010074,2]
[404364587,1770078639944,-175.91942146,0.00010074,2]
[404364589,1770078639953,-170.36367963,0.00010074,2]
[404364591,1770078639963,-500.0,0.00010074,2]
[404364593,1770078639973,-500.0,0.00010074,2]
[404364595,1770078639983,-500.0,0.00010074,2]
[404364597,1770078639992,-500.0,0.00010074,2]
[404364599,1770078640002,-500.0,0.00010074,2]
[404364601,1770078640012,-500.0,0.00010074,2]
[404364603,1770078640021,-569.16951839,0.00010074,2]
[404364605,1770078640030,-500.0,0.00010074,2]
[404364607,1770078640040,-225.48373467,0.00010074,2]
[404364609,1770078640049,-500.0,0.00010074,2]
[404364611,1770078640058,-164.14571343,0.00010074,2]
[404364613,1770078640067,-500.91194722,0.00010074,2]
[404364615,1770078640076,-168.13382401,0.00010074,2]
[404364617,1770078640085,-500.0,0.00010074,2]
[404364619,1770078640094,-500.0,0.00010074,2]
[404364621,1770078640103,-500.0,0.00010074,2]
[404364622,1770078640112,-500.0,0.00010074,2]
[404364624,1770078640121,-164.70227396,0.00010074,2]
[404364626,1770078640132,-500.0,0.00010074,2]
[404364628,1770078640141,-541.62569807,0.00010074,2]
[404364630,1770078640153,-500.0,0.00010074,2]
[404364632,1770078640162,-500.0,0.00010074,2]
[404364634,1770078640171,-500.0,0.00010074,2]
[404364636,1770078640180,-500.0,0.00010074,2]
[404364638,1770078640190,-500.0,0.00010074,2]
[404364639,1770078640199,-500.0,0.00010074,2]
[404364640,1770078640208,-500.0,0.00010074,2]
[404364641,1770078640217,-500.0,0.00010074,2]
[404364642,1770078640228,-500.0,0.00010074,2]
[404364643,1770078640238,-500.0,0.00010074,2]
[404364644,1770078640247,-500.0,0.00010074,2]
[404364645,1770078640257,-500.0,0.00010074,2]
[404364646,1770078640266,-239.65788203,0.00010074,2]
[404364647,1770078640275,-500.0,0.00010074,2]
[404364648,1770078640284,-500.0,0.00010074,2]
[404364649,1770078640293,-163.90719075,0.00010074,2]
[404364650,1770078640303,-500.0,0.00010074,2]
[404364651,1770078640312,-500.0,0.00010074,2]
[404364652,1770078640321,-500.0,0.00010074,2]
[404364653,1770078640331,-500.0,0.00010074,2]
[404364654,1770078640341,-500.0,0.00010074,2]
[404364655,1770078640353,-166.29434153,0.00010074,2]
[404364656,1770078640363,-163.07853281,0.00010074,2]
[404364657,1770078640373,-500.0,0.00010074,2]
[404364658,1770078640384,-500.0,0.00010074,2]
[404364659,1770078640394,-260.20985881,0.000101,2]
[404364660,1770078640403,-994.72,0.00010221,2]
[404364661,1770078640412,-500.0,0.00010222,2]
[404364662,1770078640420,-300.0,0.00010323,2]
[404364663,1770078640429,-193.0,0.00010323,2]
[404364664,1770078640439,-300.0,0.00010323,2]
[404364665,1770078640448,-250.0,0.00010349,2]
[404364666,1770078640458,-300.0,0.00010349,2]
[404364667,1770078640468,-300.0,0.00010375,2]
[404364668,1770078640479,-500.0,0.00010375,2]
[404364669,1770078640490,-1680.0,0.00010399,2]
[404364670,1770078640501,-420.0,0.00010399,2]
[404364671,1770078640512,-420.0,0.0001042,2]
[404364672,1770078640522,-255.0,0.0001042,2]
[404364673,1770078640532,-994.72,0.00010495,2]
[404364674,1770078640542,-500.0,0.00010496,2]
[404364675,1770078640552,-200.0,0.00010548,2]
[404364676,1770078640563,-200.0,0.00010548,2]
[404364677,1770078640572,-500.0,0.00010548,2]
[404364678,1770078640581,-775.0,0.00010611,2]
[404364680,1770078640590,-501.31844292,0.00010622,2]
[404364681,1770078640600,-1000.0,0.00010622,2]
[404364683,1770078640610,-1005.56383771,0.00010622,2]
[404364685,1770078640619,-1000.0,0.00010622,2]
[404364686,1770078640630,-1000.0,0.00010622,2]
[404364687,1770078640639,-543.53042842,0.00010622,2]
[404364688,1770078640649,-1000.0,0.00010622,2]
[404364689,1770078640658,-1000.0,0.00010622,2]
[404364690,1770078640669,-1000.0,0.00010622,2]
[404364691,1770078640678,-1000.0,0.00010622,2]
[404364692,1770078640688,-1000.0,0.00010622,2]
[404364694,1770078640698,-1000.0,0.00010622,2]
[404364695,1770078640707,-1000.0,0.00010622,2]
[404364696,1770078640716,-1000.0,0.00010622,2]
[404364697,1770078640726,-1000.0,0.00010622,2]
[404364698,1770078640747,-656.95111861,0.00010622,2]
[404364699,1770078640756,-1000.0,0.00010622,2]
[404364700,1770078640765,-500.0,0.00010622,2]
[404364701,1770078640775,-1000.0,0.00010622,2]
[404364702,1770078640786,-447.99725278,0.00010622,2]
[404364703,1770078640798,-245.04092473,0.00010622,2]
[404364704,1770078640808,-490.75391952,0.00010622,2]
[404364705,1770078640818,-1000.0,0.00010622,2]
[404364706,1770078640829,-1000.0,0.00010622,2]
[404364707,1770078640839,-1000.0,0.00010622,2]
[404364708,1770078640848,-1000.0,0.00010622,2]
[404364709,1770078640858,-1000.0,0.00010622,2]
[404364710,1770078640867,-1000.0,0.00010622,2]
[404364711,1770078640876,-1000.0,0.00010622,2]
[404364712,1770078640886,-1000.0,0.00010622,2]
[404364713,1770078640897,-259.40505883,0.00010622,2]
[404364714,1770078640906,-1000.0,0.00010622,2]
[404364715,1770078640915,-1000.0,0.00010622,2]
[404364716,1770078640924,-510.87393165,0.00010622,2]
[404364717,1770078640933,-268.67078659,0.000107,2]
[404364718,1770078640943,-994.72,0.00010769,2]
[404364719,1770078640951,-500.0,0.0001077,2]
[404364720,1770078640960,-1029.34213251,0.000108,2]
[404364721,1770078640970,-19184.78,0.0001091,2]
[404364722,1770078640979,-500.0,0.00010959,2]
[404364723,1770078640988,-184.11,0.00010959,2]
[404364724,1770078640998,-4817.54,0.00010959,2]
[404364725,1770078641007,-165.6164086,0.00010959,2]
[404364726,1770078641016,-994.72,0.00011043,2]
[404364727,1770078641026,-500.0,0.00011044,2]
[404364728,1770078641035,-301.87,0.00011051,2]
[404364729,1770078641044,-200.0,0.00011096,2]
[404364730,1770078641054,-200.0,0.00011096,2]
[404364731,1770078641063,-500.0,0.00011096,2]
[404364732,1770078641073,-74452.37255236,0.00011099,2]
[404364733,1770078641082,-74452.3725523,0.00011099,2]
[404364734,1770078641091,-74452.3725523,0.00011099,2]
[404364735,1770078641100,-74452.3725523,0.00011099,2]
[404364736,1770078641109,-52184.57256576,0.00011099,2]
[404364737,1770078641119,-52184.5725657,0.00011099,2]
[404364738,1770078641128,-52184.5725657,0.00011099,2]
[404364739,1770078641137,-52184.5725657,0.00011099,2]
[404364740,1770078641147,-1226.83579927,0.0001117,2]
[404364741,1770078641160,-1500.0,0.0001117,2]
[404364742,1770078641169,-1576.084771,0.0001117,2]
[404364743,1770078641178,-503.2603763,0.0001117,2]
[404364744,1770078641187,-1500.0,0.0001117,2]
[404364745,1770078641197,-1500.0,0.0001117,2]
[404364746,1770078641206,-1500.0,0.0001117,2]
[404364747,1770078641215,-621.64801251,0.0001117,2]
[404364748,1770078641225,-1506.79391477,0.0001117,2]
[404364749,1770078641235,-1500.0,0.0001117,2]
[404364750,1770078641244,-1500.0,0.0001117,2]
[404364751,1770078641253,-1500.0,0.0001117,2]
[404364752,1770078641262,-1500.0,0.0001117,2]
[404364753,1770078641271,-846.7110441,0.0001117,2]
[404364754,1770078641280,-1500.0,0.0001117,2]
[404364755,1770078641289,-152.81544497,0.0001117,2]
[404364756,1770078641298,-1500.0,0.0001117,2]
[404364757,1770078641307,-1500.0,0.0001117,2]
[404364758,1770078641316,-1550.7159852,0.0001117,2]
[404364759,1770078641325,-1500.0,0.0001117,2]
[404364760,1770078641334,-411.8365552,0.0001117,2]
[404364761,1770078641344,-1345.40864898,0.0001117,2]
[404364762,1770078641353,-1064.89867821,0.0001117,2]
[404364763,1770078641362,-1500.0,0.0001117,2]
[404364764,1770078641371,-150.0,0.00011233,2]
[404364765,1770078641380,-200.0,0.00011233,2]
[404364766,1770078641393,-74452.3725523,0.00011254,2]
[404364767,1770078641402,-150.01024118,0.00011296,2]
[404364768,1770078641411,-994.72,0.00011317,2]
[404364769,1770078641420,-500.0,0.00011318,2]
[404364770,1770078641429,-200.0,0.00011345,2]
[404364771,1770078641438,-52184.5725657,0.00011362,2]
[404364772,1770078641447,-2351.0,0.00011439,2]
[404364773,1770078641456,-200.0,0.00011459,2]
[404364774,1770078641465,-587.0,0.00011462,2]
[404364775,1770078641474,-433.0,0.00011462,2]
[404364776,1770078641483,-500.0,0.00011534,2]
[404364777,1770078641493,-200.0,0.00011573,2]
[404364778,1770078641502,-994.72,0.00011591,2]
[404364779,1770078641511,-500.0,0.00011592,2]
[404364780,1770078641520,-200.0,0.00011644,2]
[404364781,1770078641530,-200.0,0.00011644,2]
[404364782,1770078641539,-500.0,0.00011644,2]
[404364783,1770078641548,-200.0,0.00011689,2]
[404364784,1770078641557,-2000.0,0.00011718,2]
[404364785,1770078641566,-1584.52493025,0.00011718,2]
[404364786,1770078641575,-2000.0,0.00011718,2]
[404364787,1770078641585,-2000.0,0.00011718,2]
[404364788,1770078641594,-2000.0,0.00011718,2]
[404364789,1770078641603,-2000.0,0.00011718,2]
[404364790,1770078641612,-2000.0,0.00011718,2]
[404364791,1770078641622,-2000.0,0.00011718,2]
[404364792,1770078641631,-2000.0,0.00011718,2]
[404364793,1770078641641,-2000.0,0.00011718,2]
[404364794,1770078641650,-2000.0,0.00011718,2]
[404364795,1770078641659,-2000.0,0.00011718,2]
[404364796,1770078641668,-1508.17552064,0.00011718,2]
[404364797,1770078641677,-74452.3725523,0.00011722,2]
[404364798,1770078641687,-52184.5725657,0.0001181,2]
[404364799,1770078641698,-994.72,0.00011865,2]
[404364800,1770078641707,-500.0,0.00011866,2]
[404364801,1770078641717,-9999.99,0.00012087,2]
[404364802,1770078641726,-29999.99,0.00012087,2]
[404364803,1770078641735,-27680.2,0.00012087,2]
[404364804,1770078641744,-994.72,0.00012139,2]
[404364805,1770078641753,-500.0,0.0001214,2]
[404364806,1770078641762,-74452.3725523,0.00012191,2]
[404364807,1770078641771,-200.0,0.00012192,2]
[404364808,1770078641780,-200.0,0.00012192,2]
[404364809,1770078641789,-500.0,0.00012192,2]
[404364810,1770078641798,-52184.5725657,0.00012257,2]
[404364811,1770078641807,-1617.53493796,0.00012259,2]
[404364812,1770078641817,-160.29771235,0.00012259,2]
[404364813,1770078641826,-1018.57190756,0.00012266,2]
[404364814,1770078641835,-2500.0,0.00012266,2]
[404364815,1770078641844,-2500.0,0.00012266,2]
[404364816,1770078641853,-2456.63226471,0.00012266,2]
[404364817,1770078641862,-1671.19037679,0.00012266,2]
[404364818,1770078641871,-1379.40909817,0.00012266,2]
[404364819,1770078641880,-2500.0,0.00012266,2]
[404364820,1770078641889,-2500.0,0.00012266,2]
[404364821,1770078641898,-1973.78998774,0.00012266,2]
[404364822,1770078641906,-2500.0,0.00012266,2]
[404364823,1770078641915,-2500.0,0.00012266,2]
[404364824,1770078641925,-250.0,0.000124,2]
[404364825,1770078641934,-994.72,0.00012413,2]
[404364826,1770078641943,-500.0,0.00012414,2]
[404364827,1770078641952,-3292.0,0.00012583,2]
[404364828,1770078641961,-150.01024118,0.00012593,2]
[404364829,1770078641971,-823.0,0.00012609,2]
[404364830,1770078641980,-736.0,0.00012609,2]
[404364831,1770078641988,-74452.3725523,0.0001266,2]
[404364832,1770078641997,-994.72,0.00012687,2]
[404364833,1770078642007,-500.0,0.00012688,2]
[404364834,1770078642016,-193705.37119555,0.0001269,2]
[404364835,1770078642026,-174.61919141,0.00012694,2]
[404364836,1770078642035,-209.40437684,0.00012694,2]
[404364837,1770078642044,-859.80605061,0.00012694,2]
[404364838,1770078642053,-500.0,0.00012694,2]
[404364839,1770078642062,-500.0,0.00012694,2]
[404364840,1770078642071,-250.0,0.00012694,2]
[404364841,1770078642080,-500.0,0.00012694,2]
[404364842,1770078642088,-250.0,0.00012694,2]
[404364843,1770078642097,-500.0,0.00012694,2]
[404364844,1770078642106,-250.0,0.00012694,2]
[404364845,1770078642115,-500.0,0.00012694,2]
[404364846,1770078642124,-250.0,0.00012694,2]
[404364847,1770078642133,-500.0,0.00012694,2]
[404364848,1770078642142,-250.0,0.00012694,2]
[404364849,1770078642153,-500.0,0.00012694,2]
[404364850,1770078642162,-250.0,0.00012694,2]
[404364851,1770078642171,-500.0,0.00012694,2]
[404364852,1770078642181,-500.0,0.00012694,2]
[404364853,1770078642191,-500.0,0.00012694,2]
[404364854,1770078642200,-209.40437684,0.00012694,2]
[404364855,1770078642209,-500.0,0.00012694,2]
[404364856,1770078642218,-322.6107,0.00012694,2]
[404364857,1770078642230,-151.0,0.00012694,2]
[404364858,1770078642239,-1428.38747117,0.00012694,2]
[404364859,1770078642248,-721.12765535,0.00012694,2]
[404364860,1770078642257,-578.20924308,0.00012694,2]
[404364861,1770078642266,-250.0,0.00012694,2]
[404364862,1770078642275,-250.0,0.00012694,2]
[404364863,1770078642284,-250.0,0.00012694,2]
[404364864,1770078642293,-250.0,0.00012694,2]
[404364865,1770078642302,-250.0,0.00012694,2]
[404364866,1770078642311,-250.0,0.00012694,2]
[404364867,1770078642320,-250.0,0.00012694,2]
[404364868,1770078642329,-250.0,0.00012694,2]
[404364869,1770078642338,-250.0,0.00012694,2]
[404364870,1770078642347,-250.0,0.00012694,2]
[404364871,1770078642356,-250.0,0.00012694,2]
[404364872,1770078642366,-209.40437684,0.00012694,2]
[404364873,1770078642375,-52184.5725657,0.00012704,2]
[404364874,1770078642384,-200.0,0.0001274,2]
[404364875,1770078642393,-200.0,0.0001274,2]
[404364876,1770078642402,-500.0,0.0001274,2]
[404364877,1770078642412,-217.15233878,0.00012749,2]
[404364878,1770078642421,-14244.17,0.00012797,2]
[404364879,1770078642430,-225.18697532,0.00012804,2]
[404364880,1770078642439,-3000.0,0.00012814,2]
[404364881,1770078642448,-1542.2584521,0.00012814,2]
[404364882,1770078642457,-3000.0,0.00012814,2]
[404364883,1770078642466,-525.91450425,0.00012814,2]
[404364884,1770078642475,-2000.0,0.00012814,2]
[404364885,1770078642484,-809.50611672,0.00012814,2]
[404364886,1770078642493,-233.51889341,0.00012859,2]
[404364887,1770078642503,-1095.87960534,0.00012877,2]
[404364888,1770078642512,-1983.79745355,0.00012877,2]
[404364889,1770078642521,-151.0,0.00012912,2]
[404364890,1770078642530,-242.15909246,0.00012914,2]
[404364891,1770078642539,-994.72,0.00012961,2]
[404364892,1770078642549,-500.0,0.00012962,2]
[404364893,1770078642558,-251.11897888,0.00012969,2]
[404364894,1770078642567,-500.0,0.00012986,2]
[404364895,1770078642576,-4433.94000455,0.00013,2]
[404364896,1770078642586,-260.4103811,0.00013024,2]
[404364897,1770078642595,-5353.89966494,0.0001305,2]
[404364898,1770078642604,-270.0455652,0.00013079,2]
[404364899,1770078642613,-74452.3725523,0.00013129,2]
[404364900,1770078642622,-280.03725112,0.00013134,2]
[404364901,1770078642633,-2086.88522229,0.00013144,2]
[404364902,1770078642642,-5507.32311936,0.00013144,2]
[404364903,1770078642651,-9715.57078642,0.00013144,2]
[404364904,1770078642661,-7805.66,0.00013151,2]
[404364905,1770078642670,-52184.5725657,0.00013151,2]
[404364906,1770078642679,-290.39862941,0.00013189,2]
[404364907,1770078642688,-994.72,0.00013235,2]
[404364908,1770078642697,-500.0,0.00013236,2]
[404364909,1770078642707,-181.08010149,0.00013242,2]
[404364910,1770078642716,-276.99112212,0.00013242,2]
[404364911,1770078642726,-217.15233878,0.00013242,2]
[404364912,1770078642736,-151.0,0.00013242,2]
[404364913,1770078642745,-1481.23780761,0.00013242,2]
[404364914,1770078642755,-301.1433787,0.00013244,2]
[404364915,1770078642765,-200.0,0.00013288,2]
[404364916,1770078642774,-200.0,0.00013288,2]
[404364917,1770078642783,-500.0,0.00013288,2]
[404364918,1770078642792,-3500.0,0.00013362,2]
[404364919,1770078642802,-1000.0,0.00013362,2]
[404364920,1770078642811,-183.76045452,0.000135,2]
[404364921,1770078642821,-994.72,0.00013508,2]
[404364922,1770078642830,-500.0,0.0001351,2]
[404364923,1770078642839,-500.0,0.00013589,2]
[404364924,1770078642848,-163.08,0.00013595,2]
[404364925,1770078642858,-52184.5725657,0.00013598,2]
[404364926,1770078642867,-74452.3725523,0.00013598,2]
[404364927,1770078642877,-3724.91484919,0.00013639,2]
[404364928,1770078642887,-500.0,0.00013698,2]
[404364929,1770078642896,-500.0,0.00013698,2]
[404364930,1770078642906,-500.0,0.00013698,2]
[404364931,1770078642915,-500.0,0.00013698,2]
[404364932,1770078642924,-500.0,0.00013698,2]
[404364933,1770078642933,-500.0,0.00013698,2]
[404364934,1770078642942,-500.0,0.00013698,2]
[404364935,1770078642951,-500.0,0.00013698,2]
[404364936,1770078642960,-500.0,0.00013698,2]
[404364937,1770078642969,-392.76776902,0.00013698,2]
[404364938,1770078642978,-500.0,0.00013698,2]
[404364939,1770078642987,-394.52625559,0.00013698,2]
[404364940,1770078642997,-500.0,0.00013698,2]
[404364941,1770078643006,-500.0,0.00013698,2]
[404364942,1770078643015,-500.0,0.00013698,2]
[404364943,1770078643026,-500.0,0.00013698,2]
[404364944,1770078643035,-500.0,0.00013698,2]
[404364945,1770078643045,-500.0,0.00013698,2]
[404364946,1770078643054,-500.0,0.00013698,2]
[404364947,1770078643064,-500.0,0.00013698,2]
[404364948,1770078643073,-500.0,0.00013698,2]
[404364949,1770078643083,-500.0,0.00013698,2]
[404364950,1770078643092,-500.0,0.00013698,2]
[404364951,1770078643101,-239.79549484,0.00013698,2]
[404364952,1770078643110,-500.0,0.00013698,2]
[404364953,1770078643120,-500.0,0.00013698,2]
[404364954,1770078643129,-500.0,0.00013698,2]
[404364955,1770078643139,-500.0,0.00013698,2]
[404364956,1770078643148,-500.0,0.00013698,2]
[404364957,1770078643160,-500.0,0.00013698,2]
[404364958,1770078643170,-500.0,0.00013698,2]
[404364959,1770078643179,-500.0,0.00013698,2]
[404364960,1770078643188,-500.0,0.00013698,2]
[404364961,1770078643199,-500.0,0.00013698,2]
[404364962,1770078643209,-500.0,0.00013698,2]
[404364963,1770078643219,-453.81105922,0.00013698,2]
[404364964,1770078643231,-500.0,0.00013698,2]
[404364965,1770078643242,-500.0,0.00013698,2]
[404364966,1770078643252,-500.0,0.00013698,2]
[404364967,1770078643261,-500.0,0.00013698,2]
[404364968,1770078643271,-500.0,0.00013698,2]
[404364969,1770078643280,-500.0,0.00013698,2]
[404364970,1770078643290,-510.82232822,0.00013698,2]
[404364971,1770078643299,-500.0,0.00013698,2]
[404364972,1770078643309,-500.0,0.00013698,2]
[404364973,1770078643318,-500.0,0.00013698,2]
[404364974,1770078643329,-500.0,0.00013698,2]
[404364975,1770078643338,-500.0,0.00013698,2]
[404364976,1770078643348,-500.0,0.00013698,2]
[404364977,1770078643358,-500.0,0.00013698,2]
[404364978,1770078643367,-500.0,0.00013698,2]
[404364979,1770078643376,-500.0,0.00013698,2]
[404364980,1770078643387,-500.0,0.00013698,2]
[404364981,1770078643396,-500.0,0.00013698,2]
[404364982,1770078643405,-500.0,0.00013698,2]
[404364983,1770078643414,-500.0,0.00013698,2]
[404364984,1770078643424,-500.0,0.00013698,2]
[404364985,1770078643433,-500.0,0.00013698,2]
[404364986,1770078643641,-846.12,0.00013698,2]
[404364987,1770078643652,-846.12,0.00013698,2]
[404364988,1770078643662,-846.12,0.00013698,2]
[404364989,1770078643672,-846.12,0.00013698,2]
[404364990,1770078643681,-846.12,0.00013698,2]
[404364991,1770078643690,-846.12,0.00013698,2]
[404364992,1770078643700,-846.12,0.00013698,2]
[404364993,1770078643709,-846.12,0.00013698,2]
[404364994,1770078643719,-846.12,0.00013698,2]
[404364995,1770078643728,-846.12,0.00013698,2]
[404364996,1770078643738,-846.12,0.00013698,2]
[404364997,1770078643747,-846.12,0.00013698,2]
[404364998,1770078643756,-846.12,0.00013698,2]
[404364999,1770078643765,-846.12,0.00013698,2]
[404365000,1770078643775,-846.12,0.00013698,2]
[404365001,1770078643784,-670.62,0.00013698,2]
[404365002,1770078643793,-670.62,0.00013698,2]
[404365003,1770078643803,-670.62,0.00013698,2]
[404365004,1770078643812,-670.62,0.00013698,2]
[404365005,1770078643822,-670.62,0.00013698,2]
[404365006,1770078643831,-670.62,0.00013698,2]
[404365007,1770078643840,-670.62,0.00013698,2]
[404365008,1770078643849,-670.62,0.00013698,2]
[404365009,1770078643858,-670.62,0.00013698,2]
[404365010,1770078643867,-670.62,0.00013698,2]
[404365011,1770078643876,-670.62,0.00013698,2]
[404365012,1770078643887,-670.62,0.00013698,2]
[404365013,1770078643896,-670.62,0.00013698,2]
[404365014,1770078643905,-670.62,0.00013698,2]
[404365015,1770078643915,-670.62,0.00013698,2]
[404365016,1770078643924,-500.0,0.00013698,2]
[404365017,1770078643934,-500.0,0.00013698,2]
[404365018,1770078643943,-500.0,0.00013698,2]
[404365019,1770078643952,-500.0,0.00013698,2]
[404365020,1770078643962,-500.0,0.00013698,2]
[404365021,1770078643971,-500.0,0.00013698,2]
[404365022,1770078643980,-500.0,0.00013698,2]
[404365023,1770078643989,-500.0,0.00013698,2]
[404365024,1770078643998,-500.0,0.00013698,2]
[404365025,1770078644007,-500.0,0.00013698,2]
[404365026,1770078644016,-500.0,0.00013698,2]
[404365027,1770078644026,-431.16604066,0.00013698,2]
[404365028,1770078644035,-500.0,0.00013698,2]
[404365029,1770078644045,-500.0,0.00013698,2]
[404365030,1770078644055,-500.0,0.00013698,2]
[404365031,1770078644063,-500.0,0.00013698,2]
[404365032,1770078644073,-500.0,0.00013698,2]
[404365033,1770078644082,-500.0,0.00013698,2]
[404365034,1770078644091,-500.0,0.00013698,2]
[404365035,1770078644100,-500.0,0.00013698,2]
[404365036,1770078644110,-500.0,0.00013698,2]
[404365037,1770078644119,-500.0,0.00013698,2]
[404365038,1770078644128,-378.11080496,0.00013698,2]
[404365039,1770078644137,-500.0,0.00013698,2]
[404365040,1770078644147,-500.0,0.00013698,2]
[404365041,1770078644160,-500.0,0.00013698,2]
[404365042,1770078644169,-500.0,0.00013698,2]
[404365043,1770078644179,-500.0,0.00013698,2]
[404365044,1770078644188,-500.0,0.00013698,2]
[404365046,1770078644198,-500.0,0.00013698,2]
[404365048,1770078644207,-500.0,0.00013698,2]
[404365050,1770078644216,-500.0,0.00013698,2]
[404365052,1770078644228,-500.0,0.00013698,2]
[404365054,1770078644237,-500.0,0.00013698,2]
[404365056,1770078644247,-500.0,0.00013698,2]
[404365058,1770078644256,-442.87817685,0.00013698,2]
[404365060,1770078644265,-734.77,0.00013698,2]
[404365062,1770078644274,-734.77,0.00013698,2]
[404365064,1770078644284,-734.77,0.00013698,2]
[404365066,1770078644293,-734.77,0.00013698,2]
[404365068,1770078644302,-734.77,0.00013698,2]
[404365071,1770078644311,-734.77,0.00013698,2]
[404365072,1770078644321,-734.77,0.00013698,2]
[404365073,1770078644330,-734.77,0.00013698,2]
[404365074,1770078644339,-734.77,0.00013698,2]
[404365075,1770078644348,-734.77,0.00013698,2]
[404365076,1770078644357,-734.77,0.00013698,2]
[404365077,1770078644366,-734.77,0.00013698,2]
[404365078,1770078644375,-734.77,0.00013698,2]
[404365079,1770078644385,-734.77,0.00013698,2]
[404365080,1770078644395,-734.77,0.00013698,2]
[404365081,1770078644404,-734.77,0.00013698,2]
[404365082,1770078644413,-734.77,0.00013698,2]
[404365083,1770078644422,-734.77,0.00013698,2]